[Event "FIDE World Rapid Chess Championship 2021"]
[White "Faizrakhmanov, Ramil"]
[Black "Svane, Rasmus"]
[WhiteFideId "24103209"]
[BlackFideId "4657101"]
[WhiteElo "2461"]
[BlackElo "2677"]
[Result "1/2-1/2"]
[Round "01"]
[TimeControl "900+10"]
[Date "2021.12.26"]
[WhiteClock "0:00:54"]
[BlackClock "0:00:30"]

1. d4 {[%clk 0:15:19]}  Nf6 {[%clk 0:15:18]} 2. c4 {[%clk 0:15:27]}  e6 {[%clk 0:15:24]} 3. Nf3 {[%clk 0:15:34]}  d5 {[%clk 0:15:30]} 4. Nc3 {[%clk 0:15:42]}  a6 {[%clk 0:15:35]} 5. cxd5 {[%clk 0:15:40]}  exd5 {[%clk 0:15:43]} 6. Bg5 {[%clk 0:15:38]}  Be6 {[%clk 0:15:50]} 7. e3 {[%clk 0:15:41]}  Nbd7 {[%clk 0:15:58]} 8. h3 {[%clk 0:15:10]}  Bd6 {[%clk 0:15:10]} 9. Bd3 {[%clk 0:14:55]}  c6 {[%clk 0:15:17]} 10. Bf4 {[%clk 0:14:48]}  Qc7 {[%clk 0:15:26]} 11. Qd2 {[%clk 0:14:52]}  O-O {[%clk 0:13:37]} 12. O-O {[%clk 0:14:56]}  Rfe8 {[%clk 0:13:39]} 13. Rfe1 {[%clk 0:14:29]}  g6 {[%clk 0:13:48]} 14. Rac1 {[%clk 0:13:55]}  Nh5 {[%clk 0:13:50]} 15. Bxd6 {[%clk 0:13:56]}  Qxd6 {[%clk 0:13:59]} 16. Na4 {[%clk 0:13:39]}  Ng7 {[%clk 0:13:51]} 17. b4 {[%clk 0:11:46]}  Bf5 {[%clk 0:13:38]} 18. Nc5 {[%clk 0:11:41]}  Bxd3 {[%clk 0:12:35]} 19. Qxd3 {[%clk 0:11:43]}  Reb8 {[%clk 0:12:19]} 20. a4 {[%clk 0:09:57]}  Ne6 {[%clk 0:12:27]} 21. Nxd7 {[%clk 0:09:30]}  Qxd7 {[%clk 0:12:35]} 22. Ne5 {[%clk 0:08:58]}  Qd6 {[%clk 0:12:16]} 23. Qb3 {[%clk 0:08:59]}  Nc7 {[%clk 0:11:57]} 24. Qc3 {[%clk 0:07:39]}  Qd8 {[%clk 0:10:41]} 25. Nd3 {[%clk 0:07:46]}  Ne8 {[%clk 0:10:22]} 26. b5 {[%clk 0:07:25]}  cxb5 {[%clk 0:10:30]} 27. axb5 {[%clk 0:07:33]}  a5 {[%clk 0:10:39]} 28. Nf4 {[%clk 0:06:30]}  a4 {[%clk 0:10:44]} 29. Qb4 {[%clk 0:05:40]}  Nf6 {[%clk 0:06:50]} 30. Ra1 {[%clk 0:05:30]}  Qa5 {[%clk 0:06:45]} 31. Reb1 {[%clk 0:04:43]}  Rc8 {[%clk 0:05:57]} 32. Nd3 {[%clk 0:03:48]}  Ne4 {[%clk 0:05:31]} 33. Ra3 {[%clk 0:03:15]}  Qxb4 {[%clk 0:03:55]} 34. Nxb4 {[%clk 0:02:08]}  Nc3 {[%clk 0:04:01]} 35. Rba1 {[%clk 0:02:04]}  Rc4 {[%clk 0:04:07]} 36. Nd3 {[%clk 0:00:35]}  Nxb5 {[%clk 0:04:11]} 37. R3a2 {[%clk 0:00:42]}  Nc3 {[%clk 0:03:00]} 38. Rb2 {[%clk 0:00:13]}  b5 {[%clk 0:03:09]} 39. Kf1 {[%clk 0:00:14]}  Kf8 {[%clk 0:02:23]} 40. Ke1 {[%clk 0:00:22]}  Rb8 {[%clk 0:01:42]} 41. Nc5 {[%clk 0:00:24]}  Ke7 {[%clk 0:01:41]} 42. f3 {[%clk 0:00:25]}  b4 {[%clk 0:01:23]} 43. Kd2 {[%clk 0:00:23]}  Kd6 {[%clk 0:00:44]} 44. Na6 {[%clk 0:00:25]}  Rb6 {[%clk 0:00:29]} 45. Nxb4 {[%clk 0:00:31]}  Rbxb4 {[%clk 0:00:23]} 46. Rxb4 {[%clk 0:00:40]}  Rxb4 {[%clk 0:00:32]} 47. Kxc3 {[%clk 0:00:48]}  Rb3+ {[%clk 0:00:41]} 48. Kd2 {[%clk 0:00:20]}  a3 {[%clk 0:00:50]} 49. Ra2 {[%clk 0:00:12]}  Kc6 {[%clk 0:00:43]} 50. Rc2+ {[%clk 0:00:12]}  Kb5 {[%clk 0:00:52]} 51. Rc7 {[%clk 0:00:19]}  a2 {[%clk 0:00:24]} 52. Ra7 {[%clk 0:00:22]}  Rb2+ {[%clk 0:00:32]} 53. Kc3 {[%clk 0:00:20]}  Rxg2 {[%clk 0:00:37]} 54. e4 {[%clk 0:00:27]}  Kc6 {[%clk 0:00:16]} 55. Ra6+ {[%clk 0:00:19]}  Kb7 {[%clk 0:00:25]} 56. Ra5 {[%clk 0:00:17]}  Kb6 {[%clk 0:00:33]} 57. Ra8 {[%clk 0:00:24]}  Rf2 {[%clk 0:00:25]} 58. exd5 {[%clk 0:00:29]}  Rxf3+ {[%clk 0:00:32]} 59. Kc4 {[%clk 0:00:37]}  Rf2 {[%clk 0:00:30]} 60. d6 {[%clk 0:00:43]}  Kc6 {[%clk 0:00:38]} 61. Ra6+ {[%clk 0:00:49]}  Kd7 {[%clk 0:00:47]} 62. Kc5 {[%clk 0:00:56]}  f5 {[%clk 0:00:16]} 63. Ra7+ {[%clk 0:01:03]}  Ke6 {[%clk 0:00:25]} 64. d5+ {[%clk 0:00:34]}  Kf6 {[%clk 0:00:34]} 65. Ra8 {[%clk 0:00:41]}  Rc2+ {[%clk 0:00:26]} 66. Kd4 {[%clk 0:00:49]}  Kf7 {[%clk 0:00:19]} 67. d7 {[%clk 0:00:38]}  a1=Q+ {[%clk 0:00:22]} 68. Rxa1 {[%clk 0:00:30]}  Ke7 {[%clk 0:00:31]} 69. Ra8 {[%clk 0:00:29]}  Kxd7 {[%clk 0:00:35]} 70. Rh8 {[%clk 0:00:36]}  Kd6 {[%clk 0:00:25]} 71. Rd8+ {[%clk 0:00:32]}  Ke7 {[%clk 0:00:34]} 72. Rh8 {[%clk 0:00:39]}  h5 {[%clk 0:00:36]} 73. Rh7+ {[%clk 0:00:20]}  Kd6 {[%clk 0:00:44]} 74. Rg7 {[%clk 0:00:17]}  Rd2+ {[%clk 0:00:48]} 75. Ke3 {[%clk 0:00:19]}  Rg2 {[%clk 0:00:56]} 76. Kd4 {[%clk 0:00:24]}  Rg1 {[%clk 0:00:54]} 77. Rg8 {[%clk 0:00:17]}  Ke7 {[%clk 0:00:14]} 78. Kc5 {[%clk 0:00:12]}  Rc1+ {[%clk 0:00:19]} 79. Kd4 {[%clk 0:00:21]}  Kf7 {[%clk 0:00:24]} 80. Ra8 {[%clk 0:00:24]}  Rh1 {[%clk 0:00:14]} 81. Ke5 {[%clk 0:00:32]}  Re1+ {[%clk 0:00:21]} 82. Kf4 {[%clk 0:00:41]}  Ke7 {[%clk 0:00:17]} 83. Ra6 {[%clk 0:00:39]}  Rg1 {[%clk 0:00:20]} 84. Ke5 {[%clk 0:00:46]}  Re1+ {[%clk 0:00:28]} 85. Kf4 {[%clk 0:00:55]}  Re4+ {[%clk 0:00:27]} 86. Kg5 {[%clk 0:00:59]}  f4 {[%clk 0:00:36]} 87. Kxg6 {[%clk 0:00:55]}  f3 {[%clk 0:00:36]} 88. Rf6 {[%clk 0:00:50]}  Re3 {[%clk 0:00:16]} 89. Rf7+ {[%clk 0:00:35]}  Kd6 {[%clk 0:00:24]} 90. Kxh5 {[%clk 0:00:40]}  Kxd5 {[%clk 0:00:25]} 91. Kg4 {[%clk 0:00:48]}  Ke6 {[%clk 0:00:22]} 92. Rxf3 {[%clk 0:00:54]}  Rxf3 {[%clk 0:00:30]} 1/2-1/2


[Site "http://www.Chess.com"]

[Event "FIDE World Rapid Chess Championship 2021"]
[White "Toczek, Grzegorz"]
[Black "Vokhidov, Shamsiddin"]
[WhiteFideId "1106457"]
[BlackFideId "14204223"]
[WhiteElo "2220"]
[BlackElo "2546"]
[Result "1/2-1/2"]
[Round "01"]
[TimeControl "900+10"]
[Date "2021.12.26"]
[WhiteClock "0:06:16"]
[BlackClock "0:00:32"]

1. e4 {[%clk 0:15:18]}  c5 {[%clk 0:15:19]} 2. Nf3 {[%clk 0:15:15]}  d6 {[%clk 0:15:27]} 3. d4 {[%clk 0:15:14]}  cxd4 {[%clk 0:15:35]} 4. Nxd4 {[%clk 0:15:22]}  Nf6 {[%clk 0:15:43]} 5. Nc3 {[%clk 0:15:31]}  Nc6 {[%clk 0:15:51]} 6. f3 {[%clk 0:14:26]}  e5 {[%clk 0:15:56]} 7. Nb3 {[%clk 0:14:13]}  Be6 {[%clk 0:16:03]} 8. Be3 {[%clk 0:13:11]}  Be7 {[%clk 0:16:06]} 9. Qd2 {[%clk 0:11:56]}  O-O {[%clk 0:15:44]} 10. O-O-O {[%clk 0:11:46]}  a5 {[%clk 0:15:31]} 11. a4 {[%clk 0:11:12]}  Nb4 {[%clk 0:15:32]} 12. Kb1 {[%clk 0:10:20]}  d5 {[%clk 0:11:11]} 13. exd5 {[%clk 0:10:26]}  Nfxd5 {[%clk 0:11:11]} 14. Bb5 {[%clk 0:08:06]}  Rc8 {[%clk 0:10:20]} 15. Nxd5 {[%clk 0:07:16]}  Bxd5 {[%clk 0:09:56]} 16. c4 {[%clk 0:06:41]}  Be6 {[%clk 0:09:21]} 17. Qxd8 {[%clk 0:06:27]}  Rfxd8 {[%clk 0:08:30]} 18. Bb6 {[%clk 0:05:52]}  Bf5+ {[%clk 0:05:54]} 19. Ka1 {[%clk 0:06:01]}  Nc2+ {[%clk 0:01:56]} 20. Ka2 {[%clk 0:06:10]}  Nb4+ {[%clk 0:01:41]} 21. Ka1 {[%clk 0:06:19]}  Nc2+ {[%clk 0:00:28]} 22. Ka2 {[%clk 0:06:28]}  Nb4+ {[%clk 0:00:32]} 23. Ka1 {[%clk 0:06:16]} 1/2-1/2


[Site "http://www.Chess.com"]

[Event "FIDE World Rapid Chess Championship 2021"]
[White "Paravyan, David"]
[Black "Kantor, Gergely"]
[WhiteFideId "4194985"]
[BlackFideId "751499"]
[WhiteElo "2671"]
[BlackElo "2454"]
[Result "1/2-1/2"]
[Round "01"]
[TimeControl "900+10"]
[Date "2021.12.26"]
[WhiteClock "0:00:32"]
[BlackClock "0:00:42"]

1. e4 {[%clk 0:15:18]}  e5 {[%clk 0:15:09]} 2. Nf3 {[%clk 0:15:26]}  Nc6 {[%clk 0:15:18]} 3. Nc3 {[%clk 0:15:35]}  Nf6 {[%clk 0:15:25]} 4. d4 {[%clk 0:15:44]}  exd4 {[%clk 0:15:20]} 5. Nxd4 {[%clk 0:15:52]}  Bb4 {[%clk 0:15:25]} 6. Nxc6 {[%clk 0:15:59]}  bxc6 {[%clk 0:15:33]} 7. Bd3 {[%clk 0:16:08]}  O-O {[%clk 0:15:40]} 8. O-O {[%clk 0:16:16]}  d5 {[%clk 0:15:48]} 9. exd5 {[%clk 0:16:24]}  cxd5 {[%clk 0:15:37]} 10. Bg5 {[%clk 0:16:32]}  c6 {[%clk 0:15:42]} 11. Qf3 {[%clk 0:16:41]}  Rb8 {[%clk 0:15:43]} 12. h3 {[%clk 0:16:48]}  Bd6 {[%clk 0:14:53]} 13. b3 {[%clk 0:16:57]}  h6 {[%clk 0:13:59]} 14. Bxf6 {[%clk 0:17:05]}  Qxf6 {[%clk 0:14:08]} 15. Qxf6 {[%clk 0:17:13]}  gxf6 {[%clk 0:14:16]} 16. Ne2 {[%clk 0:17:18]}  c5 {[%clk 0:13:40]} 17. Rad1 {[%clk 0:17:10]}  Be6 {[%clk 0:13:37]} 18. Ng3 {[%clk 0:11:51]}  Rfd8 {[%clk 0:12:57]} 19. Nf5 {[%clk 0:11:24]}  Bf8 {[%clk 0:12:54]} 20. g4 {[%clk 0:10:46]}  c4 {[%clk 0:12:22]} 21. Be2 {[%clk 0:10:54]}  Bxf5 {[%clk 0:09:15]} 22. gxf5 {[%clk 0:11:02]}  cxb3 {[%clk 0:08:12]} 23. axb3 {[%clk 0:11:10]}  Rbc8 {[%clk 0:07:26]} 24. Bd3 {[%clk 0:11:00]}  Bb4 {[%clk 0:07:34]} 25. Kg2 {[%clk 0:10:28]}  a5 {[%clk 0:07:35]} 26. Kf3 {[%clk 0:10:35]}  Kh7 {[%clk 0:07:21]} 27. Rg1 {[%clk 0:10:36]}  Rg8 {[%clk 0:07:19]} 28. Rg4 {[%clk 0:06:28]}  Rxg4 {[%clk 0:07:05]} 29. hxg4 {[%clk 0:06:35]}  Kg7 {[%clk 0:07:12]} 30. Ke3 {[%clk 0:06:12]}  Bc5+ {[%clk 0:06:57]} 31. Ke2 {[%clk 0:06:21]}  Bb4 {[%clk 0:06:49]} 32. Kf1 {[%clk 0:06:01]}  Rc7 {[%clk 0:06:43]} 33. Kg2 {[%clk 0:03:55]}  Rc5 {[%clk 0:06:42]} 34. Kh3 {[%clk 0:04:03]}  Rc7 {[%clk 0:06:45]} 35. Kh4 {[%clk 0:04:05]}  Rc5 {[%clk 0:05:55]} 36. f4 {[%clk 0:03:35]}  Bc3 {[%clk 0:06:00]} 37. Kh5 {[%clk 0:02:20]}  Bb4 {[%clk 0:05:53]} 38. g5 {[%clk 0:02:25]}  hxg5 {[%clk 0:05:59]} 39. fxg5 {[%clk 0:02:33]}  fxg5 {[%clk 0:05:59]} 40. Kxg5 {[%clk 0:02:39]}  Bc3 {[%clk 0:05:55]} 41. Rg1 {[%clk 0:02:24]}  Bd2+ {[%clk 0:05:38]} 42. Kh5+ {[%clk 0:02:23]}  Kf6 {[%clk 0:05:43]} 43. Rg8 {[%clk 0:02:31]}  Rc7 {[%clk 0:02:40]} 44. Re8 {[%clk 0:02:39]}  Re7 {[%clk 0:01:38]} 45. Rd8 {[%clk 0:02:48]}  Ke5 {[%clk 0:01:46]} 46. Bb5 {[%clk 0:00:41]}  Rc7 {[%clk 0:01:52]} 47. c4 {[%clk 0:00:36]}  d4 {[%clk 0:01:32]} 48. Kg4 {[%clk 0:00:45]}  Ke4 {[%clk 0:01:26]} 49. c5 {[%clk 0:00:46]}  Rxc5 {[%clk 0:00:53]} 50. Re8+ {[%clk 0:00:46]}  Kd5 {[%clk 0:01:01]} 51. Bc4+ {[%clk 0:00:53]}  Kd6 {[%clk 0:00:37]} 52. Bxf7 {[%clk 0:00:51]}  Re5 {[%clk 0:00:43]} 53. Be6 {[%clk 0:00:16]}  Re1 {[%clk 0:00:18]} 54. Kf3 {[%clk 0:00:12]}  Bc3 {[%clk 0:00:17]} 55. Kf2 {[%clk 0:00:12]}  Re3 {[%clk 0:00:13]} 56. Rd8+ {[%clk 0:00:11]}  Ke5 {[%clk 0:00:19]} 57. Rd5+ {[%clk 0:00:13]}  Kf6 {[%clk 0:00:26]} 58. Rd6 {[%clk 0:00:15]}  Ke5 {[%clk 0:00:34]} 59. Rd5+ {[%clk 0:00:24]}  Kf6 {[%clk 0:00:43]} 60. Rd6 {[%clk 0:00:32]}  Ke5 {[%clk 0:00:42]} 1/2-1/2


[Site "http://www.Chess.com"]

[Event "FIDE World Rapid Chess Championship 2021"]
[White "Postny, Evgeny"]
[Black "Movsesian, Sergei"]
[WhiteFideId "2804344"]
[BlackFideId "310204"]
[WhiteElo "2454"]
[BlackElo "2667"]
[Result "0-1"]
[Round "01"]
[TimeControl "900+10"]
[Date "2021.12.26"]
[WhiteClock "0:01:08"]
[BlackClock "0:01:27"]

1. d4 {[%clk 0:15:16]}  d5 {[%clk 0:15:18]} 2. c4 {[%clk 0:15:24]}  c6 {[%clk 0:15:26]} 3. Nf3 {[%clk 0:15:31]}  Nf6 {[%clk 0:15:34]} 4. Nc3 {[%clk 0:15:07]}  dxc4 {[%clk 0:15:41]} 5. a4 {[%clk 0:15:15]}  Bf5 {[%clk 0:15:49]} 6. Ne5 {[%clk 0:14:45]}  Nbd7 {[%clk 0:15:48]} 7. Nxc4 {[%clk 0:14:53]}  Nb6 {[%clk 0:15:52]} 8. Ne5 {[%clk 0:15:01]}  a5 {[%clk 0:15:54]} 9. f3 {[%clk 0:14:56]}  Nfd7 {[%clk 0:15:45]} 10. Nxd7 {[%clk 0:15:03]}  Nxd7 {[%clk 0:15:44]} 11. e4 {[%clk 0:15:11]}  Bg6 {[%clk 0:15:53]} 12. Be2 {[%clk 0:15:03]}  e6 {[%clk 0:15:08]} 13. Be3 {[%clk 0:14:59]}  Bb4 {[%clk 0:14:53]} 14. O-O {[%clk 0:15:03]}  O-O {[%clk 0:14:43]} 15. Qb3 {[%clk 0:14:06]}  Qc7 {[%clk 0:13:14]} 16. Rac1 {[%clk 0:13:33]}  Rac8 {[%clk 0:13:07]} 17. g3 {[%clk 0:11:05]}  Kh8 {[%clk 0:12:26]} 18. Kg2 {[%clk 0:10:56]}  Qb8 {[%clk 0:11:16]} 19. Rfd1 {[%clk 0:10:35]}  h6 {[%clk 0:11:04]} 20. Bf1 {[%clk 0:10:06]}  Bh7 {[%clk 0:10:21]} 21. Ne2 {[%clk 0:09:56]}  e5 {[%clk 0:09:35]} 22. d5 {[%clk 0:08:52]}  f5 {[%clk 0:07:58]} 23. exf5 {[%clk 0:08:43]}  Bxf5 {[%clk 0:08:01]} 24. dxc6 {[%clk 0:08:33]}  Nf6 {[%clk 0:06:57]} 25. cxb7 {[%clk 0:04:45]}  Qxb7 {[%clk 0:07:02]} 26. Rxc8 {[%clk 0:03:48]}  Rxc8 {[%clk 0:05:26]} 27. Nc3 {[%clk 0:03:46]}  e4 {[%clk 0:03:46]} 28. Be2 {[%clk 0:03:51]}  exf3+ {[%clk 0:01:27]} 29. Bxf3 {[%clk 0:03:59]}  Bh3+ {[%clk 0:03:50]} 30. Kf2 {[%clk 0:02:46]}  Ng4+ {[%clk 0:03:48]} 31. Ke2 {[%clk 0:02:55]}  Qa6+ {[%clk 0:03:30]} 32. Nb5 {[%clk 0:02:50]}  Re8 {[%clk 0:02:16]} 33. Rd3 {[%clk 0:02:37]}  Qg6 {[%clk 0:01:21]} 34. Nc7 {[%clk 0:02:10]}  Rf8 {[%clk 0:01:21]} 35. Qe6 {[%clk 0:01:05]}  Bf1+ {[%clk 0:01:19]} 36. Kxf1 {[%clk 0:01:08]}  Qxd3+ {[%clk 0:01:27]} 0-1


[Site "http://www.Chess.com"]

[Event "FIDE World Rapid Chess Championship 2021"]
[White "Suleymanli, Aydin"]
[Black "Indjic, Aleksandar"]
[WhiteFideId "13413937"]
[BlackFideId "911925"]
[WhiteElo "2202"]
[BlackElo "2544"]
[Result "1-0"]
[Round "01"]
[TimeControl "900+10"]
[Date "2021.12.26"]
[WhiteClock "0:00:33"]
[BlackClock "0:00:12"]

1. d4 {[%clk 0:14:50]}  Nf6 {[%clk 0:15:10]} 2. c4 {[%clk 0:14:58]}  e6 {[%clk 0:15:15]} 3. Nc3 {[%clk 0:15:06]}  Bb4 {[%clk 0:15:17]} 4. e3 {[%clk 0:15:12]}  O-O {[%clk 0:15:21]} 5. Ne2 {[%clk 0:15:21]}  Re8 {[%clk 0:15:27]} 6. a3 {[%clk 0:15:21]}  Bf8 {[%clk 0:15:35]} 7. Ng3 {[%clk 0:15:27]}  d5 {[%clk 0:14:59]} 8. Qc2 {[%clk 0:14:13]}  c5 {[%clk 0:12:19]} 9. dxc5 {[%clk 0:14:19]}  Bxc5 {[%clk 0:12:26]} 10. b4 {[%clk 0:14:01]}  Bf8 {[%clk 0:12:13]} 11. Be2 {[%clk 0:13:03]}  a5 {[%clk 0:11:51]} 12. b5 {[%clk 0:13:07]}  Nbd7 {[%clk 0:11:59]} 13. cxd5 {[%clk 0:13:10]}  exd5 {[%clk 0:12:06]} 14. O-O {[%clk 0:13:18]}  Nb6 {[%clk 0:11:23]} 15. Na4 {[%clk 0:12:15]}  Nxa4 {[%clk 0:08:29]} 16. Qxa4 {[%clk 0:12:22]}  Nd7 {[%clk 0:08:37]} 17. Bb2 {[%clk 0:10:40]}  Nc5 {[%clk 0:08:45]} 18. Qc2 {[%clk 0:10:20]}  Be6 {[%clk 0:08:36]} 19. Bd4 {[%clk 0:10:29]}  Rc8 {[%clk 0:08:39]} 20. Qb2 {[%clk 0:09:34]}  Na4 {[%clk 0:08:05]} 21. Qd2 {[%clk 0:09:03]}  Nc5 {[%clk 0:08:11]} 22. Qb2 {[%clk 0:08:44]}  Na4 {[%clk 0:03:53]} 23. Qd2 {[%clk 0:08:47]}  Nc5 {[%clk 0:03:35]} 24. Rfb1 {[%clk 0:08:56]}  a4 {[%clk 0:03:41]} 25. Bd1 {[%clk 0:09:04]}  g6 {[%clk 0:03:46]} 26. Bb2 {[%clk 0:07:17]}  Bg7 {[%clk 0:03:32]} 27. Bxg7 {[%clk 0:07:01]}  Kxg7 {[%clk 0:03:41]} 28. Rb4 {[%clk 0:06:58]}  Qf6 {[%clk 0:03:30]} 29. Rc1 {[%clk 0:07:02]}  b6 {[%clk 0:03:36]} 30. h3 {[%clk 0:05:52]}  Red8 {[%clk 0:03:44]} 31. Rf4 {[%clk 0:04:15]}  Ne4 {[%clk 0:02:57]} 32. Qd3 {[%clk 0:00:40]}  Qb2 {[%clk 0:00:50]} 33. Rxc8 {[%clk 0:00:27]}  Rxc8 {[%clk 0:00:56]} 34. Nxe4 {[%clk 0:00:35]}  dxe4 {[%clk 0:01:05]} 35. Rxe4 {[%clk 0:00:43]}  Rc1 {[%clk 0:01:12]} 36. Kh2 {[%clk 0:00:52]}  Qxf2 {[%clk 0:01:14]} 37. Rf4 {[%clk 0:00:43]}  Qe1 {[%clk 0:00:16]} 38. Qd4+ {[%clk 0:00:34]}  Kg8 {[%clk 0:00:25]} 39. Qd8+ {[%clk 0:00:36]}  Kg7 {[%clk 0:00:34]} 40. Qf6+ {[%clk 0:00:44]}  Kg8 {[%clk 0:00:44]} 41. Rd4 {[%clk 0:00:46]}  Rc8 {[%clk 0:00:50]} 42. Rd8+ {[%clk 0:00:40]}  Rxd8 {[%clk 0:00:59]} 43. Qxd8+ {[%clk 0:00:48]}  Kg7 {[%clk 0:01:08]} 44. Qd4+ {[%clk 0:00:57]}  Kg8 {[%clk 0:00:51]} 45. Bxa4 {[%clk 0:01:04]}  Qa5 {[%clk 0:01:00]} 46. Qd8+ {[%clk 0:01:01]}  Kg7 {[%clk 0:01:09]} 47. Qd4+ {[%clk 0:01:10]}  Kg8 {[%clk 0:01:18]} 48. Kg3 {[%clk 0:00:47]}  Qa7 {[%clk 0:01:13]} 49. Kf2 {[%clk 0:00:43]}  h5 {[%clk 0:01:18]} 50. Kg1 {[%clk 0:00:29]}  Kh7 {[%clk 0:01:22]} 51. Kf1 {[%clk 0:00:24]}  Qc7 {[%clk 0:01:28]} 52. Bd1 {[%clk 0:00:16]}  Qc1 {[%clk 0:01:21]} 53. a4 {[%clk 0:00:15]}  Bb3 {[%clk 0:01:22]} 54. Ke2 {[%clk 0:00:24]}  Be6 {[%clk 0:01:07]} 55. Kf2 {[%clk 0:00:30]}  Bc4 {[%clk 0:00:46]} 56. Bf3 {[%clk 0:00:15]}  Qf1+ {[%clk 0:00:49]} 57. Kg3 {[%clk 0:00:24]}  Bb3 {[%clk 0:00:15]} 58. Kh2 {[%clk 0:00:30]}  Qe1 {[%clk 0:00:23]} 59. Qxb6 {[%clk 0:00:30]}  h4 {[%clk 0:00:29]} 60. Qd6 {[%clk 0:00:25]}  Bxa4 {[%clk 0:00:12]} 61. b6 {[%clk 0:00:33]} 1-0


[Site "http://www.Chess.com"]

[Event "FIDE World Rapid Chess Championship 2021"]
[White "Bartel, Mateusz"]
[Black "Lopusiewicz, Piotr"]
[WhiteFideId "1112635"]
[BlackFideId "1116029"]
[WhiteElo "2543"]
[BlackElo "2197"]
[Result "1-0"]
[Round "01"]
[TimeControl "900+10"]
[Date "2021.12.26"]
[WhiteClock "0:03:27"]
[BlackClock "0:00:42"]

1. e4 {[%clk 0:15:16]}  e5 {[%clk 0:15:17]} 2. Nf3 {[%clk 0:15:24]}  Nc6 {[%clk 0:15:25]} 3. Bb5 {[%clk 0:15:32]}  a6 {[%clk 0:15:31]} 4. Ba4 {[%clk 0:15:40]}  Nf6 {[%clk 0:15:37]} 5. O-O {[%clk 0:15:29]}  Be7 {[%clk 0:15:41]} 6. Re1 {[%clk 0:15:37]}  b5 {[%clk 0:15:45]} 7. Bb3 {[%clk 0:15:46]}  O-O {[%clk 0:15:49]} 8. a4 {[%clk 0:15:37]}  Na5 {[%clk 0:15:42]} 9. Ba2 {[%clk 0:15:21]}  Bb7 {[%clk 0:15:24]} 10. d3 {[%clk 0:14:17]}  d6 {[%clk 0:14:13]} 11. Bd2 {[%clk 0:12:42]}  c5 {[%clk 0:13:12]} 12. Bxa5 {[%clk 0:12:49]}  Qxa5 {[%clk 0:13:19]} 13. axb5 {[%clk 0:12:57]}  Qb6 {[%clk 0:11:53]} 14. bxa6 {[%clk 0:12:20]}  Rxa6 {[%clk 0:12:00]} 15. Na3 {[%clk 0:12:18]}  Qxb2 {[%clk 0:10:42]} 16. Bc4 {[%clk 0:11:57]}  Ra7 {[%clk 0:03:51]} 17. Qd2 {[%clk 0:07:42]}  Rfa8 {[%clk 0:00:54]} 18. Reb1 {[%clk 0:06:57]}  Rxa3 {[%clk 0:01:01]} 19. Rxb2 {[%clk 0:07:06]}  Rxa1+ {[%clk 0:01:09]} 20. Ne1 {[%clk 0:07:14]}  Bc6 {[%clk 0:00:52]} 21. h3 {[%clk 0:07:10]}  Bd8 {[%clk 0:00:56]} 22. Kh2 {[%clk 0:06:40]}  h6 {[%clk 0:00:59]} 23. Nf3 {[%clk 0:06:14]}  Ba5 {[%clk 0:00:50]} 24. c3 {[%clk 0:06:15]}  Ra3 {[%clk 0:00:38]} 25. Rb3 {[%clk 0:06:21]}  Ra1 {[%clk 0:00:42]} 26. Qe2 {[%clk 0:03:28]}  Rc1 {[%clk 0:00:26]} 27. Qb2 {[%clk 0:03:33]}  Rd1 {[%clk 0:00:24]} 28. Rb8+ {[%clk 0:03:39]}  Rxb8 {[%clk 0:00:30]} 29. Qxb8+ {[%clk 0:03:47]}  Ne8 {[%clk 0:00:32]} 30. Bxf7+ {[%clk 0:03:48]}  Kxf7 {[%clk 0:00:36]} 31. Qb3+ {[%clk 0:03:54]}  c4 {[%clk 0:00:40]} 32. Qxd1 {[%clk 0:03:23]}  Bxc3 {[%clk 0:00:42]} 33. Qc2 {[%clk 0:03:27]} 1-0


[Site "http://www.Chess.com"]

[Event "FIDE World Rapid Chess Championship 2021"]
[White "Demchenko, Anton"]
[Black "Sadhwani, Raunak"]
[WhiteFideId "4160258"]
[BlackFideId "35093487"]
[WhiteElo "2666"]
[BlackElo "2454"]
[Result "1/2-1/2"]
[Round "01"]
[TimeControl "900+10"]
[Date "2021.12.26"]
[WhiteClock "0:06:15"]
[BlackClock "0:07:35"]

1. e4 {[%clk 0:15:17]}  e5 {[%clk 0:15:19]} 2. Nf3 {[%clk 0:15:24]}  Nc6 {[%clk 0:15:27]} 3. Nc3 {[%clk 0:15:20]}  Nf6 {[%clk 0:15:34]} 4. d4 {[%clk 0:15:28]}  exd4 {[%clk 0:15:42]} 5. Nxd4 {[%clk 0:15:36]}  Bb4 {[%clk 0:15:50]} 6. Nxc6 {[%clk 0:15:45]}  bxc6 {[%clk 0:15:58]} 7. Bd3 {[%clk 0:15:54]}  O-O {[%clk 0:16:06]} 8. O-O {[%clk 0:16:02]}  d5 {[%clk 0:16:14]} 9. exd5 {[%clk 0:16:10]}  cxd5 {[%clk 0:16:22]} 10. h3 {[%clk 0:16:15]}  h6 {[%clk 0:15:30]} 11. Qf3 {[%clk 0:14:51]}  Rb8 {[%clk 0:15:37]} 12. Rd1 {[%clk 0:14:58]}  Bb7 {[%clk 0:12:30]} 13. a3 {[%clk 0:14:24]}  Be7 {[%clk 0:11:08]} 14. b4 {[%clk 0:10:30]}  Re8 {[%clk 0:07:59]} 15. Nb5 {[%clk 0:08:26]}  c5 {[%clk 0:08:08]} 16. Qg3 {[%clk 0:06:01]}  Nh5 {[%clk 0:07:19]} 17. Qg4 {[%clk 0:06:06]}  Nf6 {[%clk 0:07:27]} 18. Qg3 {[%clk 0:06:10]}  Nh5 {[%clk 0:07:35]} 19. Qg4 {[%clk 0:06:15]} 1/2-1/2


[Site "http://www.Chess.com"]